bitfinex-derivatives/quotes_BNBF0:USTF0_20250331
["timestamp","ask_amount","ask_price","bid_price","bid_amount"]
[1743434761002,4.05016282,604.62,603.27,0.33152651]
[1743434761202,1.1646338,604.61,603.27,0.33152651]
[1743434761409,2.56654861,604.61,603.27,0.33152651]
[1743434761708,0.87649828,604.6,603.27,0.33152651]
[1743434761905,0.87649828,604.59,603.27,0.33152651]
[1743434762105,2.27850435,604.6,603.27,0.33152651]
[1743434762306,0.87649828,604.59,603.27,0.33152651]
[1743434762511,2.00416282,604.6,603.27,0.33152651]
[1743434762708,0.87649828,604.6,603.27,0.33152651]
[1743434763506,0.87745847,604.59,603.27,0.33152651]
[1743434763712,0.87745847,604.6,603.27,0.33152651]
[1743434763911,2.28001281,604.6,603.27,0.33152651]
[1743434764111,0.87745847,604.6,603.27,0.33152651]
[1743434764307,0.87745847,604.61,603.27,0.33152651]
[1743434764512,2.046,604.62,603.27,0.33152651]
[1743434768613,0.87745847,604.61,603.27,0.33152651]
[1743434769015,0.8781487,604.6,603.27,0.33152651]
[1743434769318,1.12766454,604.61,603.27,0.33152651]
[1743434769715,2.00601284,604.61,603.27,0.33152651]
[1743434769917,3.40999705,604.61,603.27,0.33152651]
[1743434770116,0.28807589,604.6,603.27,0.33152651]
[1743434771423,3.69807294,604.6,603.27,0.33152651]
[1743434771618,2.28233251,604.59,603.27,0.33152651]
[1743434771924,0.8783483,604.59,603.27,0.33152651]
[1743434772219,0.8783483,604.58,603.27,0.33152651]
[1743434772523,3.40999705,604.57,603.27,0.33152651]
[1743434772719,2.28233251,604.56,603.27,0.33152651]
[1743434772920,0.8783483,604.55,603.27,0.33152651]
[1743434773121,0.8783483,604.54,603.27,0.33152651]
[1743434773322,0.8783483,604.53,603.27,0.33152651]
[1743434773624,2.0183483,604.52,603.27,0.33152651]
[1743434773927,0.8783483,604.51,603.27,0.33152651]
[1743434774122,0.8783483,604.5,603.27,0.33152651]
[1743434774322,0.8783483,604.49,603.27,0.33152651]
[1743434774624,2.00601284,604.48,603.27,0.33152651]
[1743434774820,1.12766454,604.48,603.27,0.33152651]
[1743434775122,0.87927932,604.47,603.27,0.33152651]
[1743434775323,0.87927932,604.46,603.27,0.33152651]
[1743434775520,1.12766454,604.47,603.27,0.33152651]
[1743434775717,4.81928548,604.48,603.27,0.33152651]
[1743434775922,2.28477403,604.47,603.27,0.33152651]
[1743434776223,0.28812002,604.46,603.27,0.33152651]
[1743434778926,0.87927932,604.48,603.27,0.33152651]
[1743434779127,3.69162233,604.49,603.27,0.33152651]
[1743434779323,0.87927932,604.48,603.27,0.33152651]
[1743434779522,2.00694386,604.48,603.27,0.33152651]
[1743434779723,3.41243857,604.48,603.27,0.33152651]
[1743434780327,3.41243857,604.47,603.27,0.33152651]
[1743434780627,2.28477403,604.46,603.27,0.33152651]
[1743434780827,1.40549471,604.46,603.27,0.33152651]
[1743434781031,1.12766454,604.47,603.27,0.33152651]
[1743434781225,2.28046237,604.47,603.27,0.33152651]
[1743434781424,1.40549471,604.48,603.27,0.33152651]
[1743434781624,2.53315925,604.48,603.27,0.33152651]
[1743434781827,0.87496766,604.47,603.27,0.33152651]
[1743434782028,2.28046237,604.47,603.27,0.33152651]
[1743434782231,3.69626363,604.47,603.27,0.33152651]
[1743434782629,2.28046237,604.46,603.27,0.33152651]
[1743434782830,2.28202863,604.46,603.27,0.33152651]
[1743434783026,0.87653392,604.46,603.27,0.33152651]
[1743434783227,0.87653392,604.45,603.27,0.33152651]
[1743434783425,0.87653392,604.44,603.27,0.33152651]
[1743434783626,0.87653392,604.43,603.27,0.33152651]
[1743434783829,0.87653392,604.42,603.27,0.33152651]
[1743434784030,0.87653392,604.41,603.27,0.33152651]
[1743434784230,0.87653392,604.4,603.27,0.33152651]
[1743434784627,2.55566454,604.41,603.27,0.33152651]
[1743434784831,1.938,604.39,603.27,0.33152651]
[1743434785532,3.94219846,604.39,603.27,0.33152651]
[1743434785732,1.40126607,604.38,603.27,0.33152651]
[1743434786032,3.40546453,604.38,603.27,0.33152651]
[1743434787229,0.87607457,604.37,603.27,0.33152651]
[1743434787432,3.40500518,604.38,603.27,0.33152651]
[1743434788034,3.69315621,604.38,603.27,0.33152651]
[1743434788333,2.29189014,604.38,603.27,0.33152651]
[1743434788732,2.29207358,604.38,603.27,0.33152651]
[1743434788928,1.16440904,604.38,603.27,0.33152651]
[1743434789129,0.28815103,604.38,603.27,0.33152651]
[1743434789529,1.16440904,604.38,603.27,0.33152651]
[1743434789735,2.5649344,604.38,603.27,0.33152651]
[1743434790034,2.29207358,604.38,603.27,0.33152651]
[1743434790430,2.56521791,604.38,603.27,0.33152651]
[1743434790630,1.16440904,604.38,603.27,0.33152651]
[1743434790832,0.87625801,604.38,603.27,0.33152651]
[1743434791029,2.29206881,604.38,603.27,0.33152651]
[1743434791334,3.69671262,604.38,603.27,0.33152651]
[1743434792036,2.00392255,604.38,603.27,0.33152651]
[1743434792428,1.938,604.39,603.27,0.33152651]
[1743434796838,2.81714927,604.39,603.27,0.33152651]
[1743434797033,3.06518327,604.39,603.27,0.33152651]
[1743434797633,1.938,604.39,603.27,0.33152651]
[1743434798944,1.141,604.38,603.27,0.33152651]
[1743434799541,2.02014927,604.38,603.27,0.33152651]
[1743434799742,3.14733254,604.38,603.27,0.33152651]
[1743434800842,2.26818327,604.38,603.27,0.33152651]
[1743434801647,1.141,604.38,603.27,0.33152651]
[1743434801947,1.306,604.37,603.27,0.33152651]
[1743434806348,1.306,604.37,603.29,2.52015749]
[1743434806851,1.306,604.37,603.31,0.33150453]
[1743434813151,1.141,604.36,603.31,0.33150453]
[1743434816459,1.741,604.35,603.31,0.33150453]
[1743434825369,1.921,604.34,603.31,0.33150453]
[1743434838667,1.78,604.33,603.31,0.33150453]
[1743434843975,2.922,604.33,603.31,0.33150453]
[1743434853388,3.79922256,604.33,603.31,0.33150453]
[1743434855085,2.922,604.33,603.31,0.33150453]
[1743434856683,3.79886835,604.33,603.31,0.33150453]
[1743434857280,1.1239474,604.32,603.31,0.33150453]
[1743434857486,2.00081575,604.32,603.31,0.33150453]
[1743434857689,1.142,604.33,603.31,0.33150453]
[1743434857690,3.14281575,604.33,603.31,0.33150453]
[1743434858089,3.14276264,604.33,603.31,0.33150453]
[1743434859990,4.98076264,604.33,603.31,0.33150453]
[1743434860183,4.1039474,604.33,603.31,0.33150453]
[1743434860384,0.87667134,604.32,603.31,0.33150453]
[1743434860790,2.00061874,604.32,603.31,0.33150453]
[1743434861897,2.00035377,604.32,603.31,0.33150453]
[1743434862794,3.63435377,604.32,603.31,0.33150453]
[1743434862999,2.7579474,604.32,603.31,0.33150453]
[1743434863201,2.51020878,604.32,603.31,0.33150453]
[1743434863701,1.634,604.32,603.31,0.33150453]
[1743434863899,2.51005037,604.32,603.31,0.33150453]
[1743434865497,3.6327432,604.32,603.31,0.33150453]
[1743434865701,2.27579692,604.31,603.31,0.33150453]
[1743434865903,0.87605037,604.3,603.31,0.33150453]
[1743434866198,0.87605037,604.29,603.31,0.33150453]
[1743434866395,0.87605037,604.28,603.31,0.33150453]
[1743434866703,0.87605037,604.29,603.31,0.33150453]
[1743434866900,0.87605037,604.28,603.31,0.33150453]
[1743434867101,2.27579692,604.29,603.31,0.33150453]
[1743434867296,0.87605037,604.28,603.31,0.33150453]
[1743434867703,2.01905037,604.27,603.31,0.33150453]
[1743434867901,1.143,604.27,603.31,0.33150453]
[1743434868095,2.01905037,604.27,603.31,0.33150453]
[1743434868298,1.143,604.27,603.31,0.33150453]
[1743434868499,2.01905037,604.27,603.31,0.33150453]
[1743434868703,0.87605037,604.26,603.31,0.33150453]
[1743434868897,0.87605037,604.25,603.31,0.33150453]
[1743434869103,0.87605037,604.26,603.31,0.33150453]
[1743434869300,0.87605037,604.25,603.31,0.33150453]
[1743434869497,0.87605037,604.26,603.31,0.33150453]
[1743434869698,0.87605037,604.25,603.31,0.33150453]
[1743434869903,0.87605037,604.26,603.31,0.33150453]
[1743434870203,0.87605037,604.25,603.31,0.33150453]
[1743434870405,0.87605037,604.26,603.31,0.33150453]
[1743434870605,0.87605037,604.25,603.31,0.33150453]
[1743434870807,0.87605037,604.26,603.31,0.33150453]
[1743434871002,0.87605037,604.25,603.31,0.33150453]
[1743434871206,2.26569283,604.27,603.31,0.33150453]
[1743434871207,0.87605037,604.24,603.31,0.33150453]
[1743434871407,0.87455303,604.26,603.31,0.33150453]
[1743434871606,0.87455303,604.25,603.31,0.33150453]
[1743434871805,0.87455303,604.26,603.31,0.33150453]
[1743434872002,0.87455303,604.25,603.31,0.33150453]
[1743434872203,0.87455303,604.24,603.31,0.33150453]
[1743434872403,0.87455303,604.23,603.31,0.33150453]
[1743434872602,0.87455303,604.22,603.31,0.33150453]
[1743434872809,0.87455303,604.21,603.31,0.33150453]
[1743434873109,0.87455303,604.2,603.31,0.33150453]
[1743434873411,0.87455303,604.19,603.31,0.33150453]
[1743434873709,0.87455303,604.18,603.31,0.33150453]
[1743434873908,0.87455303,604.17,603.31,0.33150453]
[1743434874111,0.87455303,604.16,603.31,0.33150453]
[1743434874310,0.87455303,604.15,603.31,0.33150453]
[1743434874509,0.87455303,604.14,603.31,0.33150453]
[1743434874809,1.39762832,604.24,603.31,0.33150453]
[1743434874810,1.12269283,604.21,603.31,0.33150453]
[1743434875005,1.16290701,604.2,603.31,0.33150453]
[1743434875206,0.87455303,604.19,603.31,0.33150453]
[1743434875402,0.87455303,604.18,603.31,0.33150453]
[1743434875709,0.87343407,604.17,603.31,0.33150453]
[1743434876005,0.87343407,604.16,603.31,0.33150453]
[1743434876210,0.87343407,604.15,603.31,0.33150453]
[1743434876411,0.87343407,604.19,603.31,0.33150453]
[1743434876713,0.87343407,604.18,603.31,0.33150453]
[1743434876911,0.87343407,604.17,603.31,0.33150453]
[1743434877210,0.87343407,604.16,603.31,0.33150453]
[1743434877406,0.87343407,604.15,603.31,0.33150453]
[1743434877611,0.87343407,604.14,603.31,0.33150453]
[1743434877911,0.87343407,604.18,603.31,0.33150453]
[1743434878113,0.87343407,604.17,603.31,0.33150453]
[1743434878311,0.28834562,604.21,603.31,0.33150453]
[1743434878312,0.87343407,604.16,603.31,0.33150453]
[1743434878507,0.87343407,604.15,603.31,0.33150453]
[1743434878706,0.87343407,604.14,603.31,0.33150453]
[1743434878913,0.87343407,604.13,603.31,0.33150453]
[1743434879113,0.87284052,604.12,603.31,0.33150453]
[1743434879313,0.87284052,604.11,603.31,0.33150453]
[1743434879508,0.87284052,604.1,603.31,0.33150453]
[1743434879713,0.87284052,604.09,603.31,0.33150453]
[1743434879911,0.87284052,604.08,603.31,0.33150453]
[1743434880111,0.87284052,604.07,603.31,0.33150453]
[1743434880414,0.87284052,604.06,603.31,0.33150453]
[1743434880713,0.87284052,604.05,603.31,0.33150453]
[1743434880916,0.87257514,604.04,603.31,0.33150453]
[1743434881116,0.87257514,604.09,603.31,0.33150453]
[1743434881319,0.87257514,604.08,603.31,0.33150453]
[1743434881516,0.87257514,604.09,603.31,0.33150453]
[1743434881716,0.87257514,604.13,603.31,0.33150453]
[1743434881912,1.705,604.12,603.31,0.33150453]
[1743434897827,1.143,604.11,603.31,0.33150453]
[1743434912337,1.594,604.1,603.31,0.33150453]
[1743434918442,1.447,604.09,603.31,0.33150453]
[1743434923444,1.144,604.08,603.31,0.33150453]
[1743434925545,0.88072198,604.07,603.31,0.33150453]
[1743434925739,2.00966226,604.07,603.31,0.33150453]
[1743434926246,1.12894028,604.06,603.31,0.33150453]
[1743434926945,2.27294028,604.08,603.31,0.33150453]
[1743434927544,1.144,604.08,603.31,0.33150453]
[1743434929744,2.02452913,604.08,603.31,0.33150453]
[1743434930038,1.12894028,604.07,603.31,0.33150453]
[1743434930845,3.15346941,604.08,603.31,0.33150453]
[1743434931038,2.27294028,604.08,603.31,0.33150453]
[1743434931438,1.144,604.08,603.31,0.33150453]
[1743434936745,2.27289514,604.08,603.31,0.33150453]
[1743434937142,1.144,604.08,603.31,0.33150453]
[1743434941745,2.98,604.08,603.31,0.33150453]
[1743434949354,4.668,604.08,603.31,0.33150453]
[1743434994880,1.1322338,604.07,603.31,0.33150453]
[1743434995475,1.1322338,604.06,603.31,0.33150453]
[1743434995877,1.1322338,604.05,603.31,0.33150453]
[1743434996279,3.30792875,604.31,603.31,0.33150453]
[1743434996480,4.18404083,604.3,603.31,0.33150453]
[1743434996675,0.98999718,604.25,603.31,0.33150453]
[1743434996875,4.18443646,604.24,603.31,0.33150453]
[1743434997076,4.18443646,604.23,603.31,0.33150453]
[1743434997381,7.1285355,604.22,603.31,0.33150453]
[1743434997578,4.18443646,604.21,603.31,0.33150453]
[1743434997879,6.63180736,604.2,603.31,0.33150453]
[1743434998080,4.18443646,604.19,603.31,0.33150453]
[1743434998282,3.68770832,604.18,603.31,0.33150453]
[1743434998584,6.63180736,604.17,603.31,0.33150453]
[1743434998785,3.68668905,604.16,603.31,0.33150453]
[1743434998980,3.68668905,604.15,603.31,0.33150453]
[1743434999284,3.97439318,604.14,603.31,0.33150453]
[1743434999484,2.28539318,604.13,603.31,0.33150453]
[1743434999784,2.28539318,604.12,603.31,0.33150453]
[1743434999993,0.87580991,604.11,603.31,0.33150453]
[1743435000291,2.00801936,604.1,603.31,0.33150453]
[1743435000491,0.8756404,604.09,603.31,0.33150453]
[1743435000696,0.8756404,604.08,603.31,0.33150453]
[1743435000892,0.8756404,604.07,603.31,0.33150453]
[1743435001090,1.13237896,604.07,603.31,0.33150453]
[1743435001689,1.13237896,604.06,603.31,0.33150453]
[1743435001892,1.689,604.14,603.31,0.33150453]
[1743435002088,0.87531661,604.13,603.31,0.33150453]
[1743435006000,1.689,604.14,603.31,0.33150453]
[1743435030019,2.057,604.13,603.31,0.33150453]
[1743435031115,2.9306162,604.13,603.31,0.33150453]
[1743435031418,1.12899749,604.12,603.31,0.33150453]
[1743435031618,2.27599749,604.12,603.31,0.33150453]
[1743435031820,3.14961369,604.12,603.31,0.33150453]
[1743435032416,1.12899749,604.11,603.31,0.33150453]
[1743435033617,1.12899749,604.1,603.31,0.33150453]
[1743435034117,1.12899749,604.11,603.31,0.33150453]
[1743435034718,1.12899749,604.1,603.31,0.33150453]
[1743435035521,1.12899749,604.09,603.31,0.33150453]
[1743435036219,2.27599749,604.12,603.31,0.33150453]
[1743435036617,1.12899749,604.11,603.31,0.33150453]
[1743435038119,1.147,604.12,603.31,0.33150453]
[1743435039421,2.27599749,604.12,603.31,0.33150453]
[1743435040826,1.147,604.12,603.31,0.33150453]
[1743435045423,1.12899749,604.11,603.31,0.33150453]
[1743435045631,0.8727687,604.1,603.31,0.33150453]
[1743435045829,0.8727687,604.09,603.31,0.33150453]
[1743435046026,2.5787687,604.09,603.31,0.33150453]
[1743435046529,2.00176619,604.08,603.31,0.33150453]
[1743435046729,0.8727687,604.07,603.31,0.33150453]
[1743435047024,1.12899749,604.06,603.31,0.33150453]
[1743435047625,1.12899749,604.05,603.31,0.33150453]
[1743435048228,1.12899749,604.07,603.31,0.33150453]
[1743435049327,1.706,604.09,603.31,0.33150453]
[1743435049928,1.148,604.08,603.31,0.33150453]
[1743435051730,4.17399749,604.08,603.31,0.33150453]
[1743435051931,0.87329927,604.07,603.31,0.33150453]
[1743435052330,2.00229676,604.07,603.31,0.33150453]
[1743435052829,1.12899749,604.07,603.31,0.33150453]
[1743435053325,4.17399749,604.08,603.31,0.33150453]
[1743435053523,0.8730224,604.07,603.31,0.33150453]
[1743435053725,0.87302157,604.07,603.31,0.33150453]
[1743435054025,2.00201906,604.07,603.31,0.33150453]
[1743435054831,2.00184704,604.07,603.31,0.33150453]
[1743435056229,0.87284955,604.06,603.31,0.33150453]
[1743435056427,2.51256682,604.07,603.31,0.33150453]
[1743435056428,2.00184704,604.05,603.31,0.33150453]
[1743435056628,1.12899749,604.05,603.31,0.33150453]
[1743435056831,0.87284955,604.04,603.31,0.33150453]
[1743435057031,2.00184704,604.03,603.31,0.33150453]
[1743435057332,1.12899749,604.03,603.31,0.33150453]
[1743435057529,1.12899749,604.02,603.31,0.33150453]
[1743435058033,1.12899749,604.01,603.31,0.33150453]
[1743435058227,2.00184704,604.01,603.31,0.33150453]
[1743435058427,1.12899749,604.0,603.31,0.33150453]
[1743435058829,0.87284955,603.99,603.31,0.33150453]
[1743435059038,0.87284955,603.98,603.31,0.33150453]
[1743435059232,0.87284955,603.97,603.31,0.33150453]
[1743435059429,0.87284955,603.96,603.31,0.33150453]
[1743435059627,2.00184704,603.95,603.31,0.33150453]
[1743435059832,1.12899749,603.95,603.31,0.33150453]
[1743435060329,1.12899749,603.94,603.31,0.33150453]
[1743435060930,3.65197631,603.99,603.31,0.33150453]
[1743435061129,2.25617228,603.99,603.31,0.33150453]
[1743435061433,1.12899749,603.98,603.31,0.33150453]
[1743435061631,3.38516977,603.98,603.31,0.33150453]
[1743435061935,0.87102887,603.97,603.31,0.33150453]
[1743435062134,1.485,603.97,603.31,0.33150453]
[1743435063534,0.87071019,603.96,603.31,0.33150453]
[1743435063734,0.87071019,603.95,603.31,0.33150453]
[1743435063937,2.25139297,603.96,603.31,0.33150453]
[1743435064138,1.12899749,603.94,603.31,0.33150453]
[1743435064539,1.99962646,603.95,603.31,0.33150453]
[1743435064932,0.87062897,603.94,603.31,0.33150453]
[1743435065137,1.99962646,603.94,603.31,0.33150453]
[1743435065334,1.12899749,603.94,603.31,0.33150453]
[1743435065537,1.99962646,603.94,603.31,0.33150453]
[1743435065739,1.12899749,603.93,603.31,0.33150453]
[1743435066137,1.99954225,603.95,603.31,0.33150453]
[1743435066337,0.87054476,603.94,603.31,0.33150453]
[1743435066538,3.38020737,603.95,603.31,0.33150453]
[1743435066841,1.12899749,603.93,603.31,0.33150453]
[1743435067142,0.87054476,603.92,603.31,0.33150453]
[1743435067339,0.87054476,603.91,603.31,0.33150453]
[1743435067541,0.87054476,603.9,603.31,0.33150453]
[1743435067736,0.87054476,603.89,603.31,0.33150453]
[1743435067942,0.87054476,603.88,603.31,0.33150453]
[1743435068143,0.87054476,603.87,603.31,0.33150453]
[1743435068338,0.87054476,603.86,603.31,0.33150453]
[1743435068541,1.99954225,603.85,603.31,0.33150453]
[1743435068741,0.87054476,603.84,603.31,0.33150453]
[1743435068938,0.87054476,603.83,603.31,0.33150453]
[1743435069143,0.87054476,603.82,603.31,0.33150453]
[1743435069346,0.87054476,603.81,603.31,0.33150453]
[1743435069645,0.87054476,603.8,603.31,0.33150453]
[1743435069844,0.87054476,603.79,603.31,0.33150453]
[1743435070040,0.86967623,603.78,603.31,0.33150453]
[1743435070248,1.12899749,603.78,603.31,0.33150453]
[1743435070938,1.12899749,603.8,603.31,0.33150453]
[1743435071344,1.99867372,603.84,603.31,0.33150453]
[1743435071641,0.86967623,603.83,603.31,0.33150453]
[1743435071843,1.99867372,603.82,603.31,0.33150453]
[1743435072038,1.12899749,603.82,603.31,0.33150453]
[1743435072243,1.99867372,603.84,603.31,0.33150453]
[1743435073145,0.86967623,603.83,603.31,0.33150453]
[1743435073338,1.99867372,603.84,603.31,0.33150453]
[1743435073540,0.86967623,603.83,603.31,0.33150453]
[1743435074347,1.99867372,603.83,603.31,0.33150453]
[1743435074544,1.12899749,603.83,603.31,0.33150453]
[1743435074742,1.99867372,603.83,603.31,0.33150453]
[1743435074941,1.12899749,603.83,603.31,0.33150453]
[1743435075947,1.99816615,603.84,603.31,0.33150453]
[1743435077046,1.12899749,603.84,603.31,0.33150453]
[1743435077545,3.224,603.85,603.31,0.33150453]
[1743435077948,1.868,603.84,603.31,0.33150453]
[1743435082551,1.149,603.83,603.31,0.33150453]
[1743435101961,3.1457098,603.83,603.31,0.33150453]
[1743435102164,3.1456045,603.83,603.31,0.33150453]
[1743435102956,2.01992285,603.83,603.31,0.33150453]
[1743435103160,1.149,603.83,603.31,0.33150453]
[1743435103459,3.334,603.83,603.31,0.33150453]
[1743435113965,0.87211278,603.82,603.31,0.33150453]
[1743435114265,1.99939174,603.82,603.31,0.33150453]
[1743435114465,0.87211278,603.81,603.31,0.33150453]
[1743435114664,0.87211278,603.8,603.31,0.33150453]
[1743435114864,0.87211278,603.79,603.31,0.33150453]
[1743435115060,0.87211278,603.78,603.31,0.33150453]
[1743435115267,0.87211278,603.77,603.31,0.33150453]
[1743435115665,1.12727896,603.77,603.31,0.33150453]
[1743435116167,1.12727896,603.79,603.31,0.33150453]
[1743435117271,2.27727896,603.8,603.31,0.33150453]
[1743435117867,1.15,603.8,603.31,0.33150453]
[1743435119567,0.8718446,603.79,603.31,0.33150453]
[1743435119768,0.8718446,603.78,603.31,0.33150453]
[1743435120071,0.8718446,603.77,603.31,0.33150453]
[1743435120270,0.8718446,603.76,603.31,0.33150453]
[1743435120866,1.12727896,603.75,603.31,0.33150453]
[1743435121272,1.12727896,603.77,603.31,0.33150453]
[1743435121770,1.12727896,603.78,603.31,0.33150453]
[1743435122871,1.12727896,603.77,603.31,0.33150453]
[1743435123273,2.107,603.78,603.31,0.33150453]
[1743435129869,1.12593557,603.77,603.31,0.33150453]
[1743435130772,1.12593557,603.76,603.31,0.33150453]
[1743435131180,1.99716578,603.77,603.31,0.33150453]
[1743435131376,1.12593557,603.77,603.31,0.33150453]
[1743435131582,0.87123021,603.76,603.31,0.33150453]
[1743435131777,0.87123021,603.75,603.31,0.33150453]
[1743435131977,0.87123021,603.74,603.31,0.33150453]
[1743435132172,1.12593557,603.75,603.31,0.33150453]
[1743435132380,1.12593557,603.73,603.31,0.33150453]
[1743435133477,1.99706859,603.77,603.31,0.33150453]
[1743435133674,1.12593557,603.77,603.31,0.33150453]
[1743435134583,3.23293557,603.78,603.31,0.33150453]
[1743435135181,2.107,603.78,603.31,0.33150453]
[1743435159793,2.862,603.79,603.31,0.33150453]
[1743435162801,2.091,603.78,603.31,0.33150453]
[1743435177012,2.862,603.79,603.31,0.33150453]
[1743435179611,1.732,603.78,603.31,0.33150453]
[1743435201740,2.862,603.79,603.31,0.33150453]
[1743435204239,1.554,603.78,603.31,0.33150453]
[1743435218257,2.862,603.79,603.31,0.33150453]
[1743435222261,1.732,603.78,603.31,0.33150453]
[1743435235365,2.862,603.79,603.31,0.33150453]
[1743435238163,2.081,603.78,603.31,0.33150453]
[1743435243770,4.131,603.78,603.31,0.33150453]
[1743435244374,5.282,603.78,603.31,0.33150453]
[1743435249271,3.201,603.78,603.31,0.33150453]
[1743435252977,1.796,603.77,603.31,0.33150453]
[1743435288015,3.201,603.78,603.31,0.33150453]
[1743435291119,1.814,603.77,603.31,0.33150453]
[1743435316032,3.201,603.78,603.31,0.33150453]
[1743435319145,1.447,603.77,603.31,0.33150453]
[1743435342462,3.201,603.78,603.31,0.33150453]
[1743435345368,2.093,603.77,603.31,0.33150453]
[1743435361483,3.201,603.78,603.31,0.33150453]
[1743435364982,1.908,603.77,603.31,0.33150453]
[1743435373588,3.754,603.77,603.31,0.33150453]
[1743435374492,4.905,603.77,603.31,0.33150453]
[1743435386103,2.997,603.77,603.31,0.33150453]
[1743435388506,2.075,603.76,603.31,0.33150453]
[1743435420419,2.06971861,603.76,603.31,0.33150453]
[1743435420618,2.997,603.77,603.31,0.33150453]
[1743435462157,0.28814387,604.72,603.31,0.33150453]
[1743435462753,1.12266642,604.71,603.31,0.33150453]
[1743435462957,3.36907888,604.71,603.31,0.33150453]
[1743435463259,2.24641246,604.7,603.31,0.33150453]
[1743435463460,0.28806874,604.66,603.31,0.33150453]
[1743435465359,2.222,604.45,603.31,0.33150453]
[1743435465860,3.371,604.45,603.31,0.33150453]
[1743435469664,5.495,604.45,603.31,0.33150453]
[1743435488676,1.12485518,604.44,603.31,0.33150453]
[1743435489271,2.222,604.45,603.31,0.33150453]
[1743435491778,3.97,604.45,603.38,2.52015749]
[1743435491978,3.97,604.45,603.4,0.33145508]
[1743435492775,5.119,604.45,603.4,0.33145508]
[1743435499880,1.99544936,604.44,603.4,0.33145508]
[1743435500084,0.87039255,604.43,603.4,0.33145508]
[1743435500286,0.87039255,604.42,603.4,0.33145508]
[1743435500486,1.12505681,604.42,603.4,0.33145508]
[1743435500687,1.99544936,604.42,603.4,0.33145508]
[1743435500883,1.12505681,604.41,603.4,0.33145508]
[1743435501783,1.12505681,604.4,603.4,0.33145508]
[1743435501984,1.12505681,604.39,603.4,0.33145508]
[1743435502690,1.12505681,604.38,603.4,0.33145508]
[1743435503282,1.99537075,604.37,603.4,0.33145508]
[1743435503483,1.12505681,604.37,603.4,0.33145508]
[1743435503688,0.87031394,604.36,603.4,0.33145508]
[1743435503889,1.12505681,604.36,603.4,0.33145508]
[1743435504390,1.12505681,604.35,603.4,0.33145508]
[1743435505191,0.87031394,604.34,603.4,0.33145508]
[1743435505384,1.12505681,604.35,603.4,0.33145508]
[1743435505585,1.99683292,604.34,603.4,0.33145508]
[1743435505788,0.87194,604.33,603.4,0.33145508]
[1743435506193,1.38035807,604.42,603.4,0.33145508]
[1743435506397,0.87224969,604.41,603.4,0.33145508]
[1743435506691,0.87224969,604.4,603.4,0.33145508]
[1743435506991,1.99972656,604.39,603.4,0.33145508]
[1743435507184,0.87224969,604.38,603.4,0.33145508]
[1743435507385,0.87224969,604.37,603.4,0.33145508]
[1743435507584,0.87224969,604.36,603.4,0.33145508]
[1743435507785,0.87224969,604.35,603.4,0.33145508]
[1743435507985,1.99972656,604.34,603.4,0.33145508]
[1743435508185,0.87224969,604.33,603.4,0.33145508]
[1743435508391,0.87224969,604.32,603.4,0.33145508]
[1743435508584,0.87224969,604.31,603.4,0.33145508]
[1743435508788,0.87224969,604.3,603.4,0.33145508]
[1743435508986,0.87224969,604.29,603.4,0.33145508]
[1743435509187,1.383906,604.3,603.4,0.33145508]
[1743435509390,14.6784147,617.05,603.4,0.33145508]
[1743435509391,1.99999499,604.29,603.4,0.33145508]
[1743435509592,1.99999499,604.28,603.4,0.33145508]
[1743435509893,0.87251812,604.27,603.4,0.33145508]
[1743435510092,0.87251812,604.26,603.4,0.33145508]
[1743435510293,1.12747687,604.26,603.4,0.33145508]
[1743435510889,1.12747687,604.25,603.4,0.33145508]
[1743435511489,2.77957272,604.38,603.4,0.33145508]
[1743435511689,2.25612006,604.37,603.4,0.33145508]
[1743435511892,2.25612006,604.36,603.4,0.33145508]
[1743435512096,1.99932714,604.35,603.4,0.33145508]
[1743435512289,0.87221406,604.34,603.4,0.33145508]
[1743435512596,1.99932714,604.33,603.4,0.33145508]
[1743435512894,1.99932714,604.32,603.4,0.33145508]
[1743435513096,0.87221406,604.31,603.4,0.33145508]
[1743435513296,1.99932714,604.3,603.4,0.33145508]
[1743435513490,0.87221406,604.29,603.4,0.33145508]
[1743435513697,0.87221406,604.28,603.4,0.33145508]
[1743435513898,0.87221406,604.27,603.4,0.33145508]
[1743435514195,0.87221406,604.26,603.4,0.33145508]
[1743435514398,1.99932714,604.25,603.4,0.33145508]
[1743435514594,0.87221406,604.24,603.4,0.33145508]
[1743435514798,0.87221406,604.23,603.4,0.33145508]
[1743435514998,1.12711308,604.22,603.4,0.33145508]
[1743435515295,0.87120951,604.21,603.4,0.33145508]
[1743435515501,1.12711308,604.21,603.4,0.33145508]
[1743435516003,0.87120951,604.23,603.4,0.33145508]
[1743435516197,0.87120951,604.22,603.4,0.33145508]
[1743435516396,1.69,604.24,603.4,0.33145508]
[1743435516603,1.1252948,604.23,603.4,0.33145508]
[1743435516902,1.1252948,604.22,603.4,0.33145508]
[1743435517903,1.1252948,604.23,603.4,0.33145508]
[1743435518404,1.69,604.24,603.4,0.33145508]
[1743435521306,1.834,604.23,603.4,0.33145508]